fUST/lending_fUST_20240111
["ID","MTS","AMOUNT","RATE_DAILY","PERIOD"]
[311107716,1704909042866,-500.0,0.00027945,2]
[311107717,1704909042877,-500.0,0.00027945,2]
[311107718,1704909042889,-500.0,0.00027945,2]
[311107719,1704909042901,-500.0,0.00027945,2]
[311107720,1704909042912,-500.0,0.00027945,2]
[311107721,1704909042923,-500.0,0.00027945,2]
[311107722,1704909042934,-500.0,0.00027945,2]
[311107723,1704909042946,-500.0,0.00027945,2]
[311107724,1704909042957,-500.0,0.00027945,2]
[311107725,1704909042969,-647.31295981,0.00027945,2]
[311107726,1704909042980,-500.0,0.00027945,2]
[311107728,1704909042992,-569.88,0.00027945,2]
[311107730,1704909043003,-500.0,0.00027945,2]
[311107732,1704909043014,-261.31725335,0.00027945,2]
[311107734,1704909043025,-500.0,0.00027945,2]
[311107736,1704909043036,-500.0,0.00027945,2]
[311107738,1704909043046,-500.0,0.00027945,2]
[311107740,1704909043055,-500.0,0.00027945,2]
[311107741,1704909043065,-500.0,0.00027945,2]
[311107742,1704909043075,-500.0,0.00027945,2]
[311107743,1704909043085,-500.0,0.00027945,2]
[311107744,1704909043095,-500.0,0.00027945,2]
[311107745,1704909043107,-500.0,0.00027945,2]
[311107746,1704909043120,-500.0,0.00027945,2]
[311107747,1704909043132,-685.78,0.00027945,2]
[311107748,1704909043143,-500.0,0.00027945,2]
[311107749,1704909043153,-500.0,0.00027945,2]
[311107750,1704909043164,-500.0,0.00027945,2]
[311107751,1704909043176,-500.0,0.00027945,2]
[311107752,1704909043187,-500.0,0.00027945,2]
[311107753,1704909043197,-500.0,0.00027945,2]
[311107754,1704909043207,-500.0,0.00027945,2]
[311107755,1704909043217,-500.0,0.00027945,2]
[311107756,1704909043227,-500.0,0.00027945,2]
[311107757,1704909043237,-500.0,0.00027945,2]
[311107758,1704909043247,-500.0,0.00027945,2]
[311107759,1704909043257,-500.0,0.00027945,2]
[311107760,1704909043268,-500.0,0.00027945,2]
[311107761,1704909043277,-500.0,0.00027945,2]
[311107762,1704909043288,-2746.9,0.00027945,2]
[311107763,1704909043298,-500.0,0.00027945,2]
[311107764,1704909043309,-500.0,0.00027945,2]
[311107765,1704909043319,-830.16,0.00027945,2]
[311107766,1704909043330,-500.0,0.00027945,2]
[311107767,1704909043339,-1030.6,0.00027945,2]
[311107768,1704909043350,-525.11,0.00027945,2]
[311107769,1704909043360,-1346.07,0.00027945,2]
[311107770,1704909043370,-8868.22,0.00027945,2]
[311107771,1704909043381,-532.77,0.00027945,2]
[311107772,1704909043391,-1062.31,0.00027945,2]
[311107773,1704909043402,-2918.73175991,0.00027998,3]
[311107774,1704909043412,-8986.94043413,0.00027998,3]
[311107775,1704909043422,-305.01426273,0.00028,2]
[311107776,1704909043432,-57731.25563589,0.00028002,4]
[311107777,1704909043441,-500.0,0.00028219,2]
[311107778,1704909043452,-500.0,0.00028219,2]
[311107779,1704909043462,-500.0,0.00028219,2]
[311107780,1704909043472,-500.0,0.00028219,2]
[311107781,1704909043482,-500.0,0.00028219,2]
[311107782,1704909043494,-500.0,0.00028219,2]
[311107783,1704909043504,-500.0,0.00028219,2]
[311107784,1704909043514,-500.0,0.00028219,2]
[311107785,1704909043524,-500.0,0.00028219,2]
[311107786,1704909043534,-500.0,0.00028219,2]
[311107787,1704909043545,-567.46003939,0.00028219,2]
[311107788,1704909043555,-500.0,0.00028219,2]
[311107789,1704909043565,-500.0,0.00028219,2]
[311107790,1704909043575,-500.0,0.00028219,2]
[311107791,1704909043585,-185.62363994,0.00028219,2]
[311107792,1704909043596,-500.0,0.00028219,2]
[311107793,1704909043606,-500.0,0.00028219,2]
[311107794,1704909043616,-500.0,0.00028219,2]
[311107795,1704909043627,-500.0,0.00028219,2]
[311107796,1704909043638,-569.88,0.00028219,2]
[311107797,1704909043649,-533.73436023,0.00028219,2]
[311107798,1704909043659,-500.0,0.00028219,2]
[311107799,1704909043669,-500.0,0.00028219,2]
[311107800,1704909043680,-500.0,0.00028219,2]
[311107801,1704909043691,-500.0,0.00028219,2]
[311107802,1704909043701,-500.0,0.00028219,2]
[311107803,1704909043711,-685.78,0.00028219,2]
[311107804,1704909043835,-500.0,0.00028219,2]
[311107805,1704909043849,-500.0,0.00028219,2]
[311107806,1704909043859,-500.0,0.00028219,2]
[311107807,1704909043868,-500.0,0.00028219,2]
[311107808,1704909043877,-500.0,0.00028219,2]
[311107809,1704909043886,-500.0,0.00028219,2]
[311107810,1704909043895,-500.0,0.00028219,2]
[311107811,1704909043905,-500.0,0.00028219,2]
[311107812,1704909043916,-500.0,0.00028219,2]
[311107813,1704909043925,-500.0,0.00028219,2]
[311107814,1704909043934,-500.0,0.00028219,2]
[311107815,1704909043943,-500.0,0.00028219,2]
[311107816,1704909043951,-2746.9,0.00028219,2]
[311107817,1704909043960,-500.0,0.00028219,2]
[311107818,1704909043969,-500.0,0.00028219,2]
[311107819,1704909043978,-830.16,0.00028219,2]
[311107820,1704909043987,-500.0,0.00028219,2]
[311107821,1704909043996,-1030.6,0.00028219,2]
[311107822,1704909044005,-525.11,0.00028219,2]
[311107823,1704909044014,-1346.07,0.00028219,2]
[311107824,1704909044023,-8868.22,0.00028219,2]
[311107825,1704909044031,-1062.31,0.00028219,2]
[311107826,1704909044042,-500.0,0.00028493,2]
[311107827,1704909044051,-500.0,0.00028493,2]
[311107829,1704909044060,-500.0,0.00028493,2]
[311107831,1704909044069,-500.0,0.00028493,2]
[311107832,1704909044077,-500.0,0.00028493,2]
[311107835,1704909044087,-500.0,0.00028493,2]
[311107836,1704909044096,-500.0,0.00028493,2]
[311107839,1704909044105,-500.0,0.00028493,2]
[311107840,1704909044114,-561.23756793,0.00028493,2]
[311107843,1704909044123,-500.0,0.00028493,2]
[311107845,1704909044133,-500.0,0.00028493,2]
[311107847,1704909044142,-500.0,0.00028493,2]
[311107848,1704909044151,-500.0,0.00028493,2]
[311107849,1704909044161,-500.0,0.00028493,2]
[311107850,1704909044171,-569.88,0.00028493,2]
[311107852,1704909044180,-500.0,0.00028493,2]
[311107853,1704909044189,-564.67628536,0.00028493,2]
[311107854,1704909044198,-500.0,0.00028493,2]
[311107855,1704909044207,-500.0,0.00028493,2]
[311107856,1704909044216,-685.78,0.00028493,2]
[311107857,1704909044225,-500.0,0.00028493,2]
[311107858,1704909044234,-500.0,0.00028493,2]
[311107860,1704909044243,-500.0,0.00028493,2]
[311107861,1704909044252,-500.0,0.00028493,2]
[311107862,1704909044262,-500.0,0.00028493,2]
[311107864,1704909044270,-500.0,0.00028493,2]
[311107866,1704909044280,-500.0,0.00028493,2]
[311107868,1704909044289,-500.0,0.00028493,2]
[311107871,1704909044298,-500.0,0.00028493,2]
[311107873,1704909044307,-2746.9,0.00028493,2]
[311107874,1704909044316,-500.0,0.00028493,2]
[311107875,1704909044325,-423.41752008,0.00028493,2]
[311107876,1704909044334,-830.16,0.00028493,2]
[311107877,1704909044343,-500.0,0.00028493,2]
[311107878,1704909044352,-1030.6,0.00028493,2]
[311107880,1704909044362,-525.11,0.00028493,2]
[311107882,1704909044371,-1346.07,0.00028493,2]
[311107884,1704909044380,-8868.22,0.00028493,2]
[311107886,1704909044389,-1062.31,0.00028493,2]
[311107888,1704909044398,-500.0,0.00028767,2]
[311107891,1704909044408,-500.0,0.00028767,2]
[311107893,1704909044417,-500.0,0.00028767,2]
[311107895,1704909044426,-500.0,0.00028767,2]
[311107897,1704909044435,-500.0,0.00028767,2]
[311107899,1704909044444,-500.0,0.00028767,2]
[311107901,1704909044454,-500.0,0.00028767,2]
[311107903,1704909044462,-500.0,0.00028767,2]
[311107904,1704909044471,-500.0,0.00028767,2]
[311107906,1704909044480,-500.0,0.00028767,2]
[311107908,1704909044490,-569.88,0.00028767,2]
[311107911,1704909044499,-355.05174422,0.00028767,2]
[311107912,1704909044508,-685.78,0.00028767,2]
[311107914,1704909044517,-500.0,0.00028767,2]
[311107917,1704909044527,-500.0,0.00028767,2]
[311107919,1704909044536,-500.0,0.00028767,2]
[311107921,1704909044545,-500.0,0.00028767,2]
[311107922,1704909044554,-500.0,0.00028767,2]
[311107924,1704909044563,-500.0,0.00028767,2]
[311107926,1704909044573,-500.0,0.00028767,2]
[311107928,1704909044582,-500.0,0.00028767,2]
[311107931,1704909044591,-2746.9,0.00028767,2]
[311107933,1704909044600,-343.2,0.00028767,2]
[311107934,1704909044609,-830.16,0.00028767,2]
[311107936,1704909044618,-616.76,0.00028767,2]
[311107938,1704909044627,-1030.6,0.00028767,2]
[311107941,1704909044637,-525.11,0.00028767,2]
[311107943,1704909044646,-1346.07,0.00028767,2]
[311107945,1704909044655,-8868.22,0.00028767,2]
[311107946,1704909044664,-1062.31,0.00028767,2]
[311107948,1704909044673,-480.91,0.00029,2]
[311107951,1704909044682,-1636.77751179,0.00029,2]
[311107953,1704909044693,-189927.92017,0.0002904,2]
[311107954,1704909044702,-500.0,0.00029041,2]
[311107956,1704909044711,-500.0,0.00029041,2]
[311107958,1704909044720,-500.0,0.00029041,2]
[311107961,1704909044729,-500.0,0.00029041,2]
[311107963,1704909044739,-500.0,0.00029041,2]
[311107965,1704909044747,-500.0,0.00029041,2]
[311107967,1704909044757,-569.88,0.00029041,2]
[311107968,1704909044766,-685.78,0.00029041,2]
[311107970,1704909044775,-500.0,0.00029041,2]
[311107972,1704909044784,-500.0,0.00029041,2]
[311107975,1704909044794,-500.0,0.00029041,2]
[311107976,1704909044803,-500.0,0.00029041,2]
[311107978,1704909044812,-500.0,0.00029041,2]
[311107981,1704909044821,-500.0,0.00029041,2]
[311107983,1704909044831,-421.14717787,0.00029041,2]
[311107986,1704909044840,-500.0,0.00029041,2]
[311107989,1704909044849,-2746.9,0.00029041,2]
[311107991,1704909044858,-830.16,0.00029041,2]
[311107994,1704909044867,-1030.6,0.00029041,2]
[311107997,1704909044876,-525.11,0.00029041,2]
[311107999,1704909044887,-1346.07,0.00029041,2]
[311108003,1704909044897,-8868.22,0.00029041,2]
[311108005,1704909044906,-1062.31,0.00029041,2]
[311108006,1704909044916,-620.0079995,0.00029106,2]
[311108009,1704909044925,-500.0,0.00029315,2]
[311108013,1704909044936,-500.0,0.00029315,2]
[311108016,1704909044945,-500.0,0.00029315,2]
[311108018,1704909044954,-500.0,0.00029315,2]
[311108021,1704909044963,-500.0,0.00029315,2]
[311108024,1704909044972,-569.88,0.00029315,2]
[311108027,1704909044982,-685.78,0.00029315,2]
[311108031,1704909044991,-500.0,0.00029315,2]
[311108033,1704909045000,-500.0,0.00029315,2]
[311108035,1704909045011,-500.0,0.00029315,2]
[311108037,1704909045020,-500.0,0.00029315,2]
[311108040,1704909045029,-500.0,0.00029315,2]
[311108042,1704909045038,-500.0,0.00029315,2]
[311108044,1704909045047,-500.0,0.00029315,2]
[311108046,1704909045056,-2746.9,0.00029315,2]
[311108047,1704909045065,-830.16,0.00029315,2]
[311108049,1704909045074,-1030.6,0.00029315,2]
[311108051,1704909045083,-525.11,0.00029315,2]
[311108053,1704909045092,-1346.07,0.00029315,2]
[311108055,1704909045101,-8868.22,0.00029315,2]
[311108057,1704909045110,-1062.31,0.00029315,2]
[311108059,1704909045119,-4168.01043791,0.000295,3]
[311108061,1704909045128,-152.83967137,0.00029589,2]
[311108063,1704909045140,-500.0,0.00029589,2]
[311108065,1704909045150,-500.0,0.00029589,2]
[311108067,1704909045160,-432.9,0.00029589,2]
[311108069,1704909045171,-500.0,0.00029589,2]
[311108072,1704909045180,-569.88,0.00029589,2]
[311108074,1704909045189,-685.78,0.00029589,2]
[311108076,1704909045198,-500.0,0.00029589,2]
[311108078,1704909045207,-500.0,0.00029589,2]
[311108080,1704909045217,-500.0,0.00029589,2]
[311108082,1704909045226,-500.0,0.00029589,2]
[311108084,1704909045235,-500.0,0.00029589,2]
[311108086,1704909045244,-500.0,0.00029589,2]
[311108088,1704909045254,-192.94317733,0.00029589,2]
[311108090,1704909045264,-2746.9,0.00029589,2]
[311108092,1704909045273,-830.16,0.00029589,2]
[311108094,1704909045283,-1030.6,0.00029589,2]
[311108096,1704909045292,-525.11,0.00029589,2]
[311108098,1704909045301,-1346.07,0.00029589,2]
[311108100,1704909045310,-8868.22,0.00029589,2]
[311108102,1704909045319,-1062.31,0.00029589,2]
[311108104,1704909045327,-373.66045,0.000297,14]
[311108106,1704909045336,-500.0,0.00029863,2]
[311108108,1704909045345,-500.0,0.00029863,2]
[311108110,1704909045353,-500.0,0.00029863,2]
[311108111,1704909045362,-569.88,0.00029863,2]
[311108113,1704909045371,-685.78,0.00029863,2]
[311108115,1704909045382,-500.0,0.00029863,2]
[311108118,1704909045391,-500.0,0.00029863,2]
[311108120,1704909045400,-500.0,0.00029863,2]
[311108122,1704909045409,-500.0,0.00029863,2]
[311108123,1704909045420,-500.0,0.00029863,2]
[311108126,1704909045430,-500.0,0.00029863,2]
[311108128,1704909045439,-2746.9,0.00029863,2]
[311108130,1704909045448,-830.16,0.00029863,2]
[311108132,1704909045457,-1030.6,0.00029863,2]
[311108134,1704909045466,-525.11,0.00029863,2]
[311108135,1704909045476,-1346.07,0.00029863,2]
[311108137,1704909045485,-8868.22,0.00029863,2]
[311108140,1704909045495,-1062.31,0.00029863,2]
[311108142,1704909045504,-181.40465391,0.00029999,2]
[311108144,1704909045513,-243.77594457,0.0003,4]
[311108146,1704909045522,-154.86062544,0.0003,2]
[311108148,1704909045531,-236.52252731,0.0003,7]
[311108149,1704909045541,-18048.02930508,0.0003,4]
[311108151,1704909045550,-686.6335406,0.0003,4]
[311108153,1704909045559,-463.38099934,0.0003,4]
[311108155,1704909045568,-6973.85683356,0.0003,4]
[311108157,1704909045578,-154.86062544,0.0003,2]
[311108159,1704909045586,-639.65046808,0.0003,4]
[311108161,1704909045595,-399.65900583,0.0003,4]
[311108163,1704909045604,-395.22,0.0003,2]
[311108165,1704909045614,-2191.22,0.0003,2]
[311108167,1704909045623,-5000.03,0.0003,2]
[311108169,1704909045633,-4999.99,0.0003,2]
[311108171,1704909045642,-5000.0,0.0003,2]
[311108173,1704909045651,-5000.0,0.0003,2]
[311108175,1704909045660,-5000.0,0.0003,2]
[311108177,1704909045670,-2058.83,0.0003,2]
[311108179,1704909045679,-4999.98,0.0003,2]
[311108181,1704909045688,-4999.99,0.0003,2]
[311108183,1704909045697,-4999.99,0.0003,2]
[311108185,1704909045706,-4999.98,0.0003,2]
[311108187,1704909045715,-5000.0,0.0003,2]
[311108189,1704909045724,-5000.0,0.0003,2]
[311108190,1704909045733,-3643.23,0.0003,2]
[311108192,1704909045743,-4999.98,0.0003,2]
[311108194,1704909045752,-5000.0,0.0003,2]
[311108195,1704909045762,-1101.39,0.0003,2]
[311108197,1704909045771,-4999.99,0.0003,2]
[311108199,1704909045781,-1200.0,0.0003,4]
[311108201,1704909045790,-247.0,0.0003,2]
[311108202,1704909045799,-500.0,0.00030136,2]
[311108204,1704909045808,-500.0,0.00030136,2]
[311108206,1704909045817,-500.0,0.00030136,2]
[311108208,1704909045827,-569.88,0.00030136,2]
[311108210,1704909045836,-685.78,0.00030136,2]
[311108212,1704909045846,-500.0,0.00030136,2]
[311108215,1704909045856,-500.0,0.00030136,2]
[311108217,1704909045865,-465.2077541,0.00030136,2]
[311108219,1704909045875,-500.0,0.00030136,2]
[311108221,1704909045886,-500.0,0.00030136,2]
[311108223,1704909045895,-500.0,0.00030136,2]
[311108225,1704909045904,-2746.9,0.00030136,2]
[311108227,1704909045912,-830.16,0.00030136,2]
[311108229,1704909045921,-1030.6,0.00030136,2]
[311108231,1704909045930,-525.11,0.00030136,2]
[311108233,1704909045939,-1346.07,0.00030136,2]
[311108235,1704909045948,-8868.22,0.00030136,2]
[311108236,1704909045957,-1062.31,0.00030136,2]
[311108237,1704909045966,-5000.0,0.00030137,2]
[311108238,1704909045975,-3180.8731799,0.00030137,2]
[311108239,1704909045984,-3067.29792664,0.000304,2]
[311108240,1704909045993,-500.0,0.0003041,2]
[311108241,1704909046002,-500.0,0.0003041,2]
[311108243,1704909046011,-500.0,0.0003041,2]
[311108245,1704909046019,-569.88,0.0003041,2]
[311108246,1704909046028,-685.78,0.0003041,2]
[311108247,1704909046036,-500.0,0.0003041,2]
[311108248,1704909046045,-262.03,0.0003041,2]
[311108249,1704909046054,-500.0,0.0003041,2]
[311108251,1704909046063,-500.0,0.0003041,2]
[311108252,1704909046072,-500.0,0.0003041,2]
[311108254,1704909046080,-2746.9,0.0003041,2]
[311108255,1704909046089,-830.16,0.0003041,2]
[311108256,1704909046098,-1030.6,0.0003041,2]
[311108257,1704909046106,-525.11,0.0003041,2]
[311108258,1704909046115,-1346.07,0.0003041,2]
[311108260,1704909046124,-8868.22,0.0003041,2]
[311108262,1704909046134,-1062.31,0.0003041,2]
[311108264,1704909046143,-620.00039998,0.00030561,2]
[311108266,1704909046152,-500.0,0.00030684,2]
[311108268,1704909046160,-235.04,0.00030684,2]
[311108270,1704909046169,-500.0,0.00030684,2]
[311108273,1704909046181,-569.88,0.00030684,2]
[311108276,1704909046191,-685.78,0.00030684,2]
[311108279,1704909046201,-500.0,0.00030684,2]
[311108281,1704909046209,-500.0,0.00030684,2]
[311108283,1704909046218,-500.0,0.00030684,2]
[311108285,1704909046227,-500.0,0.00030684,2]
[311108287,1704909046237,-2746.9,0.00030684,2]
[311108289,1704909046245,-830.16,0.00030684,2]
[311108291,1704909046255,-1030.6,0.00030684,2]
[311108293,1704909046264,-525.11,0.00030684,2]
[311108295,1704909046273,-1346.07,0.00030684,2]
[311108297,1704909046282,-8868.22,0.00030684,2]
[311108299,1704909046291,-1062.31,0.00030684,2]
[311108301,1704909046300,-155.0,0.0003078,2]
[311108303,1704909046310,-322.58797651,0.00030884,4]
[311108305,1704909046319,-186.44744215,0.00030884,4]
[311108307,1704909046328,-3931.75997852,0.00030884,4]
[311108309,1704909046337,-322.90801845,0.00030886,2]
[311108311,1704909046346,-677.06023414,0.00030886,4]
[311108313,1704909046355,-387.35823573,0.00030886,4]
[311108315,1704909046363,-154.89158518,0.00030886,4]
[311108317,1704909046373,-630.97782879,0.00030886,2]
[311108319,1704909046382,-312.01079223,0.00030886,2]
[311108321,1704909046391,-497.10310821,0.00030887,2]
[311108323,1704909046400,-1371.49672784,0.00030887,2]
[311108325,1704909046409,-433.33144742,0.00030887,2]
[311108336,1704909046419,-5531.74580385,0.00030887,2]
[311108338,1704909046516,-1659.52374115,0.00030887,2]
[311108340,1704909046526,-490.77864672,0.00030887,2]
[311108342,1704909046535,-2385.18527397,0.00030887,2]
[311108344,1704909046545,-158.55952742,0.00030887,2]
[311108346,1704909046554,-151.0,0.00030952,2]
[311108348,1704909046564,-500.0,0.00030958,2]
[311108350,1704909046573,-368.75979811,0.00030958,2]
[311108352,1704909046583,-569.88,0.00030958,2]
[311108354,1704909046592,-685.78,0.00030958,2]
[311108356,1704909046601,-500.0,0.00030958,2]
[311108358,1704909046611,-500.0,0.00030958,2]
[311108360,1704909046621,-500.0,0.00030958,2]
[311108363,1704909046632,-500.0,0.00030958,2]
[311108364,1704909046642,-84.30649538,0.00030958,2]
[311108368,1704909046665,-2662.59350462,0.00030958,2]
[311108370,1704909046674,-830.16,0.00030958,2]
[311108372,1704909046684,-1030.6,0.00030958,2]
[311108374,1704909046693,-525.11,0.00030958,2]
[311108376,1704909046707,-1346.07,0.00030958,2]
[311108378,1704909046717,-3808.31601826,0.00030958,2]
[311108381,1704909046729,-5059.90398174,0.00030958,2]
[311108383,1704909046739,-1062.31,0.00030958,2]
[311108385,1704909046748,-150.87929656,0.00030973,2]
[311108387,1704909046757,-804.84,0.00030987,2]
[311108389,1704909046766,-804.84,0.00030987,2]
[311108391,1704909046775,-804.84,0.00030987,2]
[311108393,1704909046785,-804.84,0.00030987,2]
[311108395,1704909046794,-804.84,0.00030987,2]
[311108397,1704909046803,-804.84,0.00030987,2]
[311108399,1704909046813,-804.84,0.00030987,2]
[311108401,1704909046822,-804.84,0.00030987,2]
[311108403,1704909046832,-20585.91157609,0.00031,4]
[311108405,1704909046840,-4215.79787365,0.00031,2]
[311108407,1704909046850,-500.0,0.00031232,2]
[311108409,1704909046859,-569.88,0.00031232,2]
[311108411,1704909046869,-685.78,0.00031232,2]
[311108413,1704909046879,-500.0,0.00031232,2]
[311108415,1704909046889,-500.0,0.00031232,2]
[311108417,1704909046898,-500.0,0.00031232,2]
[311108419,1704909046907,-500.0,0.00031232,2]
[311108421,1704909046916,-2746.9,0.00031232,2]
[311108423,1704909046925,-830.16,0.00031232,2]
[311108425,1704909046934,-1030.6,0.00031232,2]
[311108427,1704909046943,-525.11,0.00031232,2]
[311108429,1704909046952,-1346.07,0.00031232,2]
[311108431,1704909046961,-8868.22,0.00031232,2]
[311108433,1704909046970,-1062.31,0.00031232,2]
[311108435,1704909046979,-500.0,0.00031506,2]
[311108437,1704909046988,-569.88,0.00031506,2]
[311108439,1704909046997,-685.78,0.00031506,2]
[311108441,1704909047006,-500.0,0.00031506,2]
[311108443,1704909047015,-500.0,0.00031506,2]
[311108445,1704909047024,-500.0,0.00031506,2]
[311108447,1704909047034,-500.0,0.00031506,2]
[311108449,1704909047043,-2746.9,0.00031506,2]
[311108451,1704909047052,-830.16,0.00031506,2]
[311108453,1704909047061,-1030.6,0.00031506,2]
[311108455,1704909047071,-525.11,0.00031506,2]
[311108457,1704909047080,-1346.07,0.00031506,2]
[311108459,1704909047089,-8868.22,0.00031506,2]
[311108461,1704909047098,-1062.31,0.00031506,2]
[311108463,1704909047107,-5000.0,0.00031718,7]
[311108465,1704909047116,-5000.0,0.00031731,7]
[311108467,1704909047125,-500.0,0.0003178,2]
[311108469,1704909047135,-569.88,0.0003178,2]
[311108471,1704909047144,-685.78,0.0003178,2]
[311108473,1704909047153,-500.0,0.0003178,2]
[311108475,1704909047164,-500.0,0.0003178,2]
[311108477,1704909047174,-500.0,0.0003178,2]
[311108479,1704909047183,-500.0,0.0003178,2]
[311108481,1704909047193,-2746.9,0.0003178,2]
[311108483,1704909047202,-830.16,0.0003178,2]
[311108485,1704909047213,-1030.6,0.0003178,2]
[311108487,1704909047222,-525.11,0.0003178,2]
[311108489,1704909047231,-1346.07,0.0003178,2]
[311108491,1704909047241,-8868.22,0.0003178,2]
[311108493,1704909047251,-1062.31,0.0003178,2]
[311108495,1704909047261,-898.30296907,0.00031885,2]
[311108497,1704909047270,-1000.0,0.00031905,2]
[311108499,1704909047279,-1000.0,0.00031921,2]
[311108501,1704909047288,-1000.0,0.00031996,2]
[311108503,1704909047297,-804.84,0.00031999,2]
[311108505,1704909047306,-804.84,0.00031999,2]
[311108507,1704909047315,-2134.03260025,0.00032,4]
[311108509,1704909047324,-223.15034432,0.00032,4]
[311108511,1704909047334,-2000.0,0.00032,2]
[311108513,1704909047343,-5999.98,0.00032,2]
[311108515,1704909047352,-5999.99,0.00032,2]
[311108517,1704909047362,-620.00801854,0.00032009,2]
[311108519,1704909047371,-2000.0,0.0003201,2]
[311108522,1704909047382,-1000.0,0.00032018,2]
[311108524,1704909047391,-2000.0,0.0003202,2]
[311108526,1704909047400,-1000.0,0.00032028,2]
[311108528,1704909047409,-2000.0,0.0003203,2]
[311108530,1704909047418,-1000.0,0.00032034,2]
[311108532,1704909047428,-2000.0,0.0003204,2]
[311108534,1704909047437,-151.0,0.00032042,2]
[311108536,1704909047446,-2000.0,0.0003205,2]
[311108538,1704909047456,-1000.0,0.00032052,2]
[311108540,1704909047465,-500.0,0.00032054,2]
[311108542,1704909047474,-569.88,0.00032054,2]
[311108544,1704909047483,-685.78,0.00032054,2]
[311108546,1704909047492,-537.98370924,0.00032054,2]
[311108548,1704909047501,-500.0,0.00032054,2]
[311108550,1704909047510,-500.0,0.00032054,2]
[311108552,1704909047519,-500.0,0.00032054,2]
[311108554,1704909047528,-2746.9,0.00032054,2]
[311108556,1704909047538,-830.16,0.00032054,2]
[311108558,1704909047547,-1030.6,0.00032054,2]
[311108560,1704909047557,-525.11,0.00032054,2]
[311108562,1704909047567,-1346.07,0.00032054,2]
[311108564,1704909047576,-8868.22,0.00032054,2]
[311108566,1704909047586,-1062.31,0.00032054,2]
[311108568,1704909047595,-2000.0,0.0003206,2]
[311108570,1704909047604,-2000.0,0.0003207,2]
[311108572,1704909047613,-1000.0,0.00032079,2]
[311108574,1704909047623,-2000.0,0.0003208,2]
[311108576,1704909047633,-1000.0,0.00032081,2]
[311108578,1704909047643,-1000.0,0.00032088,2]
[311108580,1704909047653,-2000.0,0.0003209,2]
[311108582,1704909047662,-1000.0,0.00032094,2]
[311108584,1704909047672,-2000.0,0.000321,2]
[311108586,1704909047682,-272.0,0.00032108,2]
[311108588,1704909047692,-161.0,0.00032108,2]
[311108589,1704909047702,-201.787,0.00032108,2]
[311108591,1704909047711,-2000.0,0.0003211,2]
[311108592,1704909047720,-1000.0,0.00032117,2]
[311108594,1704909047730,-1000.0,0.00032118,2]
[311108595,1704909047739,-433.98160686,0.00032119,2]
[311108597,1704909047749,-2000.0,0.0003212,2]
[311108598,1704909047758,-1000.0,0.00032125,2]
[311108599,1704909047768,-1000.0,0.00032128,2]
[311108600,1704909047777,-2000.0,0.0003213,2]
[311108601,1704909047787,-1000.0,0.00032131,2]
[311108603,1704909047796,-1000.0,0.00032133,2]
[311108605,1704909047806,-1000.0,0.00032133,2]
[311108607,1704909047815,-3929.751714,0.0003214,2]
[311108609,1704909047824,-254.00672133,0.0003215,2]